fUSD/lending_fUSD_20260628
["ID","MTS","AMOUNT","RATE_DAILY","PERIOD"]
[426579376,1782627045000,-152.886409,0.00029663,7]
[426579378,1782627045000,-160.0,0.00029669,30]
[426579381,1782627045000,-631.0,0.00029669,30]
[426579379,1782627045000,-153.0,0.00029669,30]
[426579382,1782627045000,-217.0,0.00029669,30]
[426579385,1782627045000,-300.0,0.00029672,10]
[426579387,1782627045000,-500.0,0.00029672,7]
[426579386,1782627045000,-666.0,0.00029672,10]
[426579391,1782627045000,-307945.0135224,0.00029673,2]
[426579380,1782627045000,-429.0,0.00029669,30]
[426579390,1782627045000,-500.0,0.00029672,2]
[426579383,1782627045000,-151.0,0.0002967,30]
[426579389,1782627045000,-500.0,0.00029672,2]
[426579392,1782627045000,-1000.0,0.000297,2]
[426579388,1782627045000,-154.77310123,0.00029672,20]
[426579394,1782627045000,-1000.0,0.000297,2]
[426579405,1782627045000,-872.5365,0.00029896,14]
[426579404,1782627045000,-644.87816239,0.00029896,14]
[426579393,1782627045000,-1000.0,0.000297,2]
[426579423,1782627045000,-304.92,0.0003,2]
[426579434,1782627045000,-12500.0,0.0003,2]
[426579430,1782627045000,-178.92,0.0003,2]
[426579465,1782627045000,-500.0,0.00030099,2]
[426579461,1782627045000,-500.0,0.00030099,2]
[426579463,1782627045000,-500.0,0.00030099,2]
[426579462,1782627045000,-500.0,0.00030099,2]
[426579469,1782627045000,-500.0,0.00030099,2]
[426579470,1782627045000,-500.0,0.00030099,2]
[426579472,1782627045000,-500.0,0.00030099,2]
[426579471,1782627045000,-500.0,0.00030099,2]
[426579473,1782627045000,-500.0,0.00030099,2]
[426579467,1782627045000,-500.0,0.00030099,2]
[426579474,1782627045000,-500.0,0.00030099,2]
[426579468,1782627045000,-500.0,0.00030099,2]
[426579484,1782627045000,-500.0,0.00030099,2]
[426579483,1782627045000,-500.0,0.00030099,2]
[426579482,1782627045000,-500.0,0.00030099,2]
[426579475,1782627045000,-500.0,0.00030099,2]
[426579478,1782627045000,-500.0,0.00030099,2]
[426579481,1782627045000,-500.0,0.00030099,2]
[426579476,1782627045000,-500.0,0.00030099,2]
[426579485,1782627045000,-500.0,0.00030099,2]
[426579477,1782627045000,-500.0,0.00030099,2]
[426579424,1782627045000,-577.06,0.0003,2]
[426579479,1782627045000,-500.0,0.00030099,2]
[426579480,1782627045000,-500.0,0.00030099,2]
[426579487,1782627045000,-500.0,0.00030099,2]
[426579464,1782627045000,-500.0,0.00030099,2]
[426579460,1782627045000,-500.0,0.00030099,2]
[426579486,1782627045000,-500.0,0.00030099,2]
[426579457,1782627045000,-500.0,0.00030099,7]
[426579459,1782627045000,-500.0,0.00030099,7]
[426579427,1782627045000,-12499.98,0.0003,2]
[426579426,1782627045000,-12499.98,0.0003,2]
[426579437,1782627045000,-203.53,0.0003,2]
[426579436,1782627045000,-22500.0,0.0003,2]
[426579440,1782627045000,-322.22453108,0.0003,2]
[426579439,1782627045000,-5334.22,0.0003,2]
[426579438,1782627045000,-2500.0,0.0003,2]
[426579442,1782627045000,-15746.18676493,0.0003,2]
[426579441,1782627045000,-4445.63493116,0.0003,2]
[426579444,1782627045000,-500.0,0.00030069,2]
[426579443,1782627045000,-9389.8551262,0.0003,2]
[426579435,1782627045000,-25000.0,0.0003,2]
[426579446,1782627045000,-1000.0,0.0003007,2]
[426579445,1782627045000,-717.03475046,0.0003007,2]
[426579456,1782627045000,-500.0,0.00030099,7]
[426579458,1782627045000,-500.0,0.00030099,7]
[426579454,1782627045000,-496.449,0.0003008,25]
[426579453,1782627045000,-172.52234246,0.0003008,25]
[426579455,1782627045000,-424.16140099,0.0003009,2]
[426579451,1782627045000,-1788.06795322,0.0003007,2]
[426579450,1782627045000,-1000.0,0.0003007,2]
[426579449,1782627045000,-1000.0,0.0003007,2]
[426579448,1782627045000,-1000.0,0.0003007,2]
[426579447,1782627045000,-1000.0,0.0003007,2]
[426579452,1782627045000,-15952.0,0.0003008,20]
[426579510,1782627046000,-1500.0,0.000301,2]
[426579515,1782627046000,-17053.81,0.0003025,2]
[426579517,1782627046000,-10000.0,0.00030333,2]
[426579519,1782627046000,-3488.60975376,0.0003039,2]
[426579527,1782627046000,-151.0,0.00030661,30]
[426579520,1782627046000,-557.0,0.00030413,2]
[426579523,1782627046000,-290.0,0.000306,2]
[426579528,1782627046000,-3488.60975376,0.00030664,2]
[426579521,1782627046000,-150.0,0.00030441,30]
[426579524,1782627046000,-317.0,0.000306,2]
[426579530,1782627046000,-165.0,0.00030669,30]
[426579526,1782627046000,-693.49179048,0.00030608,2]
[426579529,1782627046000,-6441.28,0.00030667,2]
[426579525,1782627046000,-312.0,0.000306,2]
[426579522,1782627046000,-15000.0,0.00030552,2]
[426579542,1782627046000,-1230.0,0.00030739,2]
[426579541,1782627046000,-1361.0,0.00030739,2]
[426579533,1782627046000,-631.0,0.00030669,30]
[426579531,1782627046000,-153.0,0.00030669,30]
[426579516,1782627046000,-289.29,0.0003025,2]
[426579532,1782627046000,-429.0,0.00030669,30]
[426579518,1782627046000,-1500.0,0.0003039,2]
[426579513,1782627046000,-11238.03,0.00030125,2]
[426579505,1782627046000,-14999.98,0.000301,2]
[426579509,1782627046000,-501.33914282,0.000301,2]
[426579535,1782627046000,-151.0,0.0003067,30]
[426579498,1782627046000,-500.0,0.00030099,2]
[426579492,1782627046000,-500.0,0.00030099,2]
[426579491,1782627046000,-500.0,0.00030099,2]
[426579490,1782627046000,-500.0,0.00030099,2]
[426579496,1782627046000,-500.0,0.00030099,2]
[426579489,1782627046000,-500.0,0.00030099,2]
[426579488,1782627046000,-500.0,0.00030099,2]
[426579495,1782627046000,-500.0,0.00030099,2]
[426579494,1782627046000,-500.0,0.00030099,2]
[426579493,1782627046000,-500.0,0.00030099,2]
[426579497,1782627046000,-500.0,0.00030099,2]
[426579499,1782627046000,-500.0,0.00030099,2]
[426579502,1782627046000,-577.56430409,0.00030099,2]
[426579506,1782627046000,-775702.53306567,0.000301,7]
[426579504,1782627046000,-716.52,0.000301,7]
[426579503,1782627046000,-368515.72451174,0.000301,7]
[426579501,1782627046000,-500.0,0.00030099,2]
[426579500,1782627046000,-500.0,0.00030099,2]
[426579507,1782627046000,-1518676.91049106,0.000301,7]
[426579514,1782627046000,-150.0,0.00030137,30]
[426579512,1782627046000,-22500.0,0.00030125,2]
[426579508,1782627046000,-401.03,0.000301,7]
[426579511,1782627046000,-3488.60975376,0.00030116,2]
[426579540,1782627046000,-1277.0,0.00030739,2]
[426579544,1782627046000,-3650.0,0.00030801,2]
[426579538,1782627046000,-401.03,0.000307,7]
[426579567,1782627046000,-150.0,0.00031355,30]
[426579578,1782627046000,-631.0,0.00031669,30]
[426579577,1782627046000,-429.0,0.00031669,30]
[426579568,1782627046000,-252.082926,0.00031399,10]
[426579570,1782627046000,-3488.60975376,0.00031486,2]
[426579576,1782627046000,-153.0,0.00031669,30]
[426579572,1782627046000,-401.03,0.000316,7]
[426579574,1782627046000,-674.90010754,0.00031653,7]
[426579575,1782627046000,-151.0,0.00031661,30]
[426579573,1782627046000,-835.0,0.00031629,7]
[426579569,1782627046000,-1500.0,0.00031486,2]
[426579580,1782627046000,-151.0,0.0003167,30]
[426579582,1782627046000,-541.41339483,0.00031691,7]
[426579584,1782627046000,-295.05,0.00031728,3]
[426579586,1782627046000,-350.0,0.00031804,2]
[426579583,1782627046000,-716.52,0.000317,7]
[426579581,1782627046000,-395.0,0.0003167,30]
[426579588,1782627046000,-229.68103113,0.00032,2]
[426579589,1782627046000,-6683.0,0.00032,7]
[426579579,1782627046000,-217.0,0.00031669,30]
[426579585,1782627046000,-3488.60975376,0.0003176,2]
[426579534,1782627046000,-217.0,0.00030669,30]
[426579587,1782627046000,-700.0,0.00031834,2]
[426579562,1782627046000,-200.0,0.0003131,2]
[426579571,1782627046000,-265.0,0.00031507,7]
[426579563,1782627046000,-647.4295,0.0003135,2]
[426579565,1782627046000,-10000.0,0.0003135,2]
[426579539,1782627046000,-426.57,0.00030726,30]
[426579537,1782627046000,-1385.24,0.000307,7]
[426579543,1782627046000,-150.0,0.00030746,30]
[426579545,1782627046000,-1211.54992017,0.0003093,2]
[426579546,1782627046000,-1296.56920308,0.0003093,2]
[426579547,1782627046000,-1474.0156861,0.0003093,2]
[426579549,1782627046000,-3488.60975376,0.00030938,2]
[426579550,1782627046000,-753.0,0.00030967,5]
[426579548,1782627046000,-1500.0,0.00030938,2]
[426579554,1782627046000,-15952.0,0.0003104,20]
[426579552,1782627046000,-1000.0,0.00031,7]
[426579536,1782627046000,-395.0,0.0003067,30]
[426579561,1782627046000,-249.0,0.00031309,2]
[426579551,1782627046000,-200.0,0.00031,2]
[426579566,1782627046000,-170.19,0.00031354,3]
[426579556,1782627046000,-166.0,0.0003105,30]
[426579559,1782627046000,-3488.60975376,0.00031212,2]
[426579555,1782627046000,-184.03698921,0.0003105,30]
[426579557,1782627046000,-350.0,0.00031143,2]
[426579558,1782627046000,-217.809999,0.000312,11]
[426579560,1782627046000,-350.0,0.00031297,2]
[426579564,1782627046000,-2000.0,0.0003135,2]
[426579553,1782627046000,-682.21177235,0.00031018,2]
[426579615,1782627047000,-217.0,0.00032669,30]
[426579618,1782627047000,-282.13,0.00032737,3]
[426579617,1782627047000,-395.0,0.0003267,30]
[426579623,1782627047000,-600.0,0.000329,12]
[426579621,1782627047000,-401.03,0.000329,7]
[426579622,1782627047000,-600.0,0.000329,12]
[426579614,1782627047000,-631.0,0.00032669,30]
[426579619,1782627047000,-308.0,0.000328,11]
[426579626,1782627047000,-1000.0,0.0003297,2]
[426579624,1782627047000,-15952.0,0.0003296,20]
[426579636,1782627047000,-1004.21726158,0.00033086,30]
[426579630,1782627047000,-713.0,0.00033,5]
[426579627,1782627047000,-500.0,0.00032999,120]
[426579634,1782627047000,-1000.0,0.00033,5]
[426579635,1782627047000,-600.0,0.00033,5]
[426579631,1782627047000,-286075.27819005,0.00033,2]
[426579633,1782627047000,-716.52,0.00033,30]
[426579628,1782627047000,-528.59386879,0.00032999,120]
[426579632,1782627047000,-2500.0,0.00033,10]
[426579629,1782627047000,-522.18451412,0.00032999,120]
[426579646,1782627047000,-751.36792841,0.00033219,2]
[426579642,1782627047000,-1133.33,0.00033181,30]
[426579625,1782627047000,-400.0,0.0003297,2]
[426579616,1782627047000,-151.0,0.0003267,30]
[426579590,1782627047000,-15952.0,0.00032,20]
[426579611,1782627047000,-152.54983586,0.00032661,30]
[426579640,1782627047000,-1114.0,0.0003315,7]
[426579592,1782627047000,-3488.60975376,0.00032034,2]
[426579591,1782627047000,-1500.0,0.00032034,2]
[426579600,1782627047000,-20335.68,0.00032232,7]
[426579598,1782627047000,-600.89,0.00032232,7]
[426579596,1782627047000,-200.0,0.000322,12]
[426579599,1782627047000,-1363.61,0.00032232,7]
[426579597,1782627047000,-375.6,0.00032232,7]
[426579593,1782627047000,-150.0,0.00032048,2]
[426579601,1782627047000,-401.03,0.000323,7]
[426579594,1782627047000,-3564.0,0.00032048,2]
[426579595,1782627047000,-1362.60084132,0.00032075,4]
[426579603,1782627047000,-358.21158436,0.00032355,14]
[426579613,1782627047000,-429.0,0.00032669,30]
[426579605,1782627047000,-100473.2371096,0.000325,4]
[426579602,1782627047000,-3488.6097538,0.00032308,2]
[426579607,1782627047000,-200.33333334,0.00032532,120]
[426579606,1782627047000,-1017.9731498,0.00032505,2]
[426579604,1782627047000,-2000.0,0.00032401,7]
[426579610,1782627047000,-1500.0,0.00032582,2]
[426579608,1782627047000,-181.70735422,0.00032555,2]
[426579612,1782627047000,-153.0,0.00032669,30]
[426579609,1782627047000,-1151.09104383,0.00032556,2]
[426579620,1782627047000,-253.41,0.00032877,2]
[426579645,1782627047000,-158.47718246,0.00033218,5]
[426579637,1782627047000,-76262.49144537,0.000331,2]
[426579641,1782627047000,-2000.0,0.00033161,7]
[426579667,1782627047000,-358.0,0.00033546,14]
[426579670,1782627047000,-3535.0,0.00033605,10]
[426579674,1782627047000,-529.43442734,0.00033618,2]
[426579673,1782627047000,-300.1687351,0.00033618,2]
[426579675,1782627047000,-300.0,0.00033618,2]
[426579678,1782627047000,-584.34311185,0.00033618,2]
[426579681,1782627047000,-607.54605794,0.00033618,2]
[426579676,1782627047000,-311.09987874,0.00033618,2]
[426579679,1782627047000,-300.08436755,0.00033618,2]
[426579677,1782627047000,-513.66493967,0.00033618,2]
[426579682,1782627047000,-729.84002325,0.00033618,2]
[426579683,1782627047000,-306.88407502,0.00033618,2]
[426579684,1782627047000,-302.02088146,0.00033618,2]
[426579686,1782627047000,-300.0,0.00033618,2]
[426579687,1782627047000,-588.23236035,0.00033618,2]
[426579689,1782627047000,-513.70275549,0.00033618,2]
[426579685,1782627047000,-300.08436755,0.00033618,2]
[426579688,1782627047000,-300.0,0.00033618,2]
[426579691,1782627047000,-454.07889135,0.00033618,2]
[426579690,1782627047000,-584.88332167,0.00033618,2]
[426579692,1782627047000,-388.98550907,0.00033618,2]
[426579693,1782627047000,-300.16872689,0.00033618,2]
[426579639,1782627047000,-172.0,0.00033123,120]
[426579671,1782627047000,-300.1687269,0.00033618,2]
[426579664,1782627047000,-1000.0,0.00033546,2]
[426579680,1782627047000,-495.08307749,0.00033618,2]
[426579668,1782627047000,-203.19,0.0003356,120]
[426579638,1782627047000,-190.30047089,0.00033123,120]
[426579669,1782627047000,-358.0,0.00033605,14]
[426579644,1782627047000,-377.29,0.00033215,120]
[426579648,1782627047000,-751.36792841,0.0003328,2]
[426579643,1782627047000,-200.0,0.000332,12]
[426579647,1782627047000,-1000.0,0.00033279,120]
[426579650,1782627047000,-1953.14451542,0.000334,2]
[426579658,1782627047000,-401.03,0.000335,7]
[426579659,1782627047000,-319.76923662,0.00033516,2]
[426579654,1782627047000,-182.45158521,0.00033484,2]
[426579652,1782627047000,-2335.0,0.00033439,11]
[426579655,1782627047000,-8660.99270303,0.00033485,2]
[426579649,1782627047000,-8317.91657697,0.00033371,30]
[426579661,1782627047000,-1000.0,0.00033546,2]
[426579656,1782627047000,-158.47718246,0.00033492,5]
[426579657,1782627047000,-184.22,0.000335,10]
[426579651,1782627047000,-1151.09104383,0.00033425,2]
[426579653,1782627047000,-9389.85512619,0.0003345,2]
[426579662,1782627047000,-1000.0,0.00033546,2]
[426579672,1782627047000,-607.49404731,0.00033618,2]
[426579663,1782627047000,-1000.0,0.00033546,2]
[426579665,1782627047000,-1000.0,0.00033546,2]
[426579660,1782627047000,-377.29,0.00033544,120]
[426579666,1782627047000,-1648.08,0.00033546,2]
[426579731,1782627048000,-200.0,0.00033676,2]
[426579733,1782627048000,-200.0,0.00033676,2]
[426579732,1782627048000,-200.0,0.00033676,2]
[426579730,1782627048000,-200.0,0.00033676,2]
[426579725,1782627048000,-200.0,0.00033676,2]
[426579729,1782627048000,-200.0,0.00033676,2]
[426579724,1782627048000,-395.0,0.0003367,30]
[426579721,1782627048000,-217.0,0.00033669,30]
[426579723,1782627048000,-151.0,0.0003367,30]
[426579734,1782627048000,-200.0,0.00033676,2]
[426579726,1782627048000,-200.0,0.00033676,2]
[426579735,1782627048000,-200.0,0.00033676,2]
[426579750,1782627048000,-348.0,0.00033692,30]
[426579737,1782627048000,-200.0,0.00033676,2]
[426579738,1782627048000,-200.0,0.00033676,2]
[426579736,1782627048000,-200.0,0.00033676,2]
[426579740,1782627048000,-200.0,0.00033676,2]
[426579748,1782627048000,-500.0,0.00033676,2]
[426579741,1782627048000,-200.0,0.00033676,2]
[426579745,1782627048000,-200.0,0.00033676,2]
[426579744,1782627048000,-200.0,0.00033676,2]
[426579746,1782627048000,-200.0,0.00033676,2]
[426579749,1782627048000,-598.0,0.00033676,2]
[426579720,1782627048000,-631.0,0.00033669,30]
[426579739,1782627048000,-200.0,0.00033676,2]
[426579719,1782627048000,-429.0,0.00033669,30]
[426579704,1782627048000,-303.21732952,0.00033618,2]
[426579727,1782627048000,-200.0,0.00033676,2]
[426579694,1782627048000,-345.56049828,0.00033618,2]
[426579705,1782627048000,-345.39990021,0.00033618,2]
[426579696,1782627048000,-300.0,0.00033618,2]
[426579695,1782627048000,-321.0454673,0.00033618,2]
[426579698,1782627048000,-445.84003865,0.00033618,2]
[426579697,1782627048000,-596.94910817,0.00033618,2]
[426579701,1782627048000,-300.0,0.00033618,2]
[426579702,1782627048000,-597.15298324,0.00033618,2]
[426579699,1782627048000,-345.56049828,0.00033618,2]
[426579703,1782627048000,-446.43069343,0.00033618,2]
[426579700,1782627048000,-953.92087478,0.00033618,2]
[426579708,1782627048000,-1806.56266267,0.00033618,2]
[426579716,1782627048000,-377.35378662,0.00033618,2]
[426579713,1782627048000,-300.0,0.00033618,2]
[426579706,1782627048000,-300.0,0.00033618,2]
[426579711,1782627048000,-300.0,0.00033618,2]
[426579712,1782627048000,-300.0,0.00033618,2]
[426579714,1782627048000,-300.0,0.00033618,2]
[426579715,1782627048000,-300.0,0.00033618,2]
[426579709,1782627048000,-300.0,0.00033618,2]
[426579707,1782627048000,-303.25778654,0.00033618,2]
[426579710,1782627048000,-300.0,0.00033618,2]
[426579718,1782627048000,-153.0,0.00033669,30]
[426579728,1782627048000,-200.0,0.00033676,2]
[426579717,1782627048000,-300.82254411,0.00033618,2]
[426579722,1782627048000,-2379.0,0.0003367,11]
[426579747,1782627048000,-203.0,0.00033676,2]
[426579742,1782627048000,-200.0,0.00033676,2]
[426579761,1782627048000,-2335.0,0.00033799,11]
[426579778,1782627048000,-200.0,0.00033967,2]
[426579781,1782627048000,-200.0,0.00033967,2]
[426579782,1782627048000,-200.0,0.00033967,2]
[426579783,1782627048000,-200.0,0.00033967,2]
[426579790,1782627048000,-500.0,0.00033967,2]
[426579787,1782627048000,-200.0,0.00033967,2]
[426579795,1782627048000,-500.0,0.00033967,2]
[426579794,1782627048000,-500.0,0.00033967,2]
[426579788,1782627048000,-189.0,0.00033967,2]
[426579789,1782627048000,-500.0,0.00033967,2]
[426579786,1782627048000,-200.0,0.00033967,2]
[426579797,1782627048000,-500.0,0.00033967,2]
[426579796,1782627048000,-500.0,0.00033967,2]
[426579791,1782627048000,-500.0,0.00033967,2]
[426579792,1782627048000,-500.0,0.00033967,2]
[426579793,1782627048000,-500.0,0.00033967,2]
[426579803,1782627048000,-505.0,0.00033967,2]
[426579805,1782627048000,-158.47718246,0.0003404,5]
[426579799,1782627048000,-500.0,0.00033967,2]
[426579800,1782627048000,-500.0,0.00033967,2]
[426579798,1782627048000,-500.0,0.00033967,2]
[426579804,1782627048000,-188.46239761,0.00034034,2]
[426579801,1782627048000,-500.0,0.00033967,2]
[426579802,1782627048000,-500.0,0.00033967,2]
[426579743,1782627048000,-200.0,0.00033676,2]
[426579777,1782627048000,-200.0,0.00033967,2]
[426579779,1782627048000,-200.0,0.00033967,2]
[426579806,1782627048000,-2836.51639588,0.00034056,10]
[426579776,1782627048000,-200.0,0.00033967,2]
[426579780,1782627048000,-200.0,0.00033967,2]
[426579752,1782627048000,-921.5,0.00033702,120]
[426579753,1782627048000,-1277.0,0.00033739,2]
[426579755,1782627048000,-1229.0,0.00033739,2]
[426579754,1782627048000,-1361.0,0.00033739,2]
[426579756,1782627048000,-417.48,0.00033742,3]
[426579757,1782627048000,-3391.57329015,0.00033748,2]
[426579760,1782627048000,-1133.32,0.0003379,30]
[426579758,1782627048000,-158.47718246,0.00033766,5]
[426579759,1782627048000,-400.0,0.0003377,2]
[426579762,1782627048000,-3921.152,0.000338,20]
[426579765,1782627048000,-3650.0,0.00033801,2]
[426579763,1782627048000,-3921.152,0.000338,20]
[426579751,1782627048000,-716.52,0.000337,30]
[426579764,1782627048000,-3921.15,0.000338,30]
[426579773,1782627048000,-5000.0,0.00033963,2]
[426579775,1782627048000,-200.0,0.00033967,2]
[426579785,1782627048000,-200.0,0.00033967,2]
[426579767,1782627048000,-377.29,0.00033898,120]
[426579774,1782627048000,-200.0,0.00033967,2]
[426579784,1782627048000,-200.0,0.00033967,2]
[426579771,1782627048000,-15952.0,0.0003392,20]
[426579766,1782627048000,-5193.31808628,0.00033824,2]
[426579770,1782627048000,-13212.52779191,0.0003392,2]
[426579772,1782627048000,-2000.0,0.00033921,7]
[426579768,1782627048000,-302.33,0.000339,120]
[426579769,1782627048000,-288.0,0.000339,120]
[426579839,1782627049000,-8452.66755663,0.0003468,30]
[426579842,1782627049000,-410.02,0.00034752,3]
[426579841,1782627049000,-153.89013941,0.000347,20]
[426579843,1782627049000,-1000.0,0.00034774,10]
[426579837,1782627049000,-539537.20983479,0.0003468,2]
[426579838,1782627049000,-759.0053783,0.0003468,10]
[426579844,1782627049000,-209.54773008,0.00034794,2]
[426579840,1782627049000,-2000.0,0.00034681,7]
[426579834,1782627049000,-395.0,0.0003467,30]
[426579845,1782627049000,-291.8210729,0.00034795,2]
[426579846,1782627049000,-401.03,0.000348,7]
[426579857,1782627049000,-151.0,0.0003486,2]
[426579858,1782627049000,-151.0,0.0003486,2]
[426579847,1782627049000,-586.0,0.00034802,2]
[426579848,1782627049000,-151.0,0.00034856,2]
[426579856,1782627049000,-151.0,0.0003486,2]
[426579855,1782627049000,-151.0,0.0003486,2]
[426579850,1782627049000,-151.0,0.00034856,2]
[426579853,1782627049000,-151.0,0.00034856,2]
[426579849,1782627049000,-151.0,0.00034856,2]
[426579854,1782627049000,-377.29,0.00034859,120]
[426579836,1782627049000,-3088.61819785,0.0003468,2]
[426579852,1782627049000,-151.0,0.00034856,2]
[426579835,1782627049000,-637875.01706784,0.0003468,30]
[426579830,1782627049000,-217.0,0.00034669,30]
[426579815,1782627049000,-1133.32,0.00034399,30]
[426579829,1782627049000,-631.0,0.00034669,30]
[426579851,1782627049000,-151.0,0.00034856,2]
[426579810,1782627049000,-1385.24,0.000342,30]
[426579809,1782627049000,-200.0,0.000342,13]
[426579808,1782627049000,-401.03,0.000341,7]
[426579807,1782627049000,-160.0,0.0003408,11]
[426579822,1782627049000,-177.65397412,0.0003458,2]
[426579813,1782627049000,-586.0,0.00034341,2]
[426579812,1782627049000,-158.47718246,0.00034314,5]
[426579818,1782627049000,-819.0,0.000345,10]
[426579817,1782627049000,-1201.9268325,0.00034448,2]
[426579814,1782627049000,-400.0,0.0003437,2]
[426579826,1782627049000,-12134.70027501,0.00034663,2]
[426579820,1782627049000,-600.89,0.00034544,60]
[426579819,1782627049000,-504.71,0.00034544,60]
[426579816,1782627049000,-1500.0,0.000344,7]
[426579821,1782627049000,-1363.61,0.00034544,60]
[426579823,1782627049000,-377.29,0.00034582,120]
[426579824,1782627049000,-158.47718246,0.00034588,5]
[426579827,1782627049000,-153.0,0.00034669,30]
[426579832,1782627049000,-424.16140099,0.0003467,2]
[426579833,1782627049000,-151.0,0.0003467,30]
[426579831,1782627049000,-1392.0,0.0003467,7]
[426579828,1782627049000,-429.0,0.00034669,30]
[426579825,1782627049000,-1000.0,0.00034637,10]
[426579811,1782627049000,-377.29,0.00034308,120]
[426579860,1782627049000,-185.26,0.0003486,2]
[426579873,1782627049000,-151.0,0.0003486,2]
[426579859,1782627049000,-151.0,0.0003486,2]
[426579890,1782627049000,-153.91941904,0.00035,7]
[426579894,1782627049000,-76254.55936963,0.00035,15]
[426579891,1782627049000,-4218.59699199,0.00035,30]
[426579892,1782627049000,-1500.0,0.00035,2]
[426579893,1782627049000,-1512.1982,0.00035,2]
[426579897,1782627049000,-206.64,0.00035,120]
[426579896,1782627049000,-1500.0,0.00035,2]
[426579898,1782627049000,-500.0,0.00035,5]
[426579905,1782627049000,-2002.95079295,0.00035,7]
[426579907,1782627049000,-12415.26641698,0.00035,10]
[426579901,1782627049000,-541.45741975,0.00035,5]
[426579889,1782627049000,-1033.11296139,0.00035,7]
[426579861,1782627049000,-151.0,0.0003486,2]
[426579903,1782627049000,-287.46392175,0.00035,120]
[426579904,1782627049000,-212.0,0.00035,2]
[426579902,1782627049000,-5000.0,0.00035,2]
[426579906,1782627049000,-12584.73358302,0.00035,10]
[426579913,1782627049000,-6000.0,0.00035,45]
[426579909,1782627049000,-21572.9163682,0.00035,10]
[426579908,1782627049000,-300.64312626,0.00035,30]
[426579912,1782627049000,-33499.0830305,0.00035,120]
[426579910,1782627049000,-6402.19713198,0.00035,10]
[426579914,1782627049000,-1133.32,0.00035008,30]
[426579911,1782627049000,-1289.21901041,0.00035,120]
[426579899,1782627049000,-500.0,0.00035,5]
[426579888,1782627049000,-20000.0,0.00035,30]
[426579900,1782627049000,-500.0,0.00035,5]
[426579886,1782627049000,-25000.0,0.00034982,10]
[426579862,1782627049000,-185.26,0.0003486,2]
[426579866,1782627049000,-151.17,0.0003486,2]
[426579865,1782627049000,-151.0,0.0003486,2]
[426579863,1782627049000,-185.26,0.0003486,2]
[426579867,1782627049000,-151.0,0.0003486,2]
[426579871,1782627049000,-644.53,0.0003486,2]
[426579869,1782627049000,-151.0,0.0003486,2]
[426579868,1782627049000,-151.0,0.0003486,2]
[426579870,1782627049000,-151.0,0.0003486,2]
[426579872,1782627049000,-151.99,0.0003486,2]
[426579884,1782627049000,-1000.0,0.00034911,10]
[426579864,1782627049000,-151.0,0.0003486,2]
[426579874,1782627049000,-573.83,0.0003486,2]
[426579881,1782627049000,-36761.0,0.000349,7]
[426579876,1782627049000,-151.0,0.0003486,2]
[426579878,1782627049000,-185.26,0.0003486,2]
[426579875,1782627049000,-185.26,0.0003486,2]
[426579880,1782627049000,-15952.0,0.0003488,20]
[426579877,1782627049000,-151.0,0.0003486,2]
[426579879,1782627049000,-158.47718246,0.00034862,5]
[426579883,1782627049000,-600.0,0.000349,12]